bitfinex-derivatives/quotes_BTCF0:USTF0_20260221
["timestamp","ask_amount","ask_price","bid_price","bid_amount"]
[1771676125478,0.014706,68017.0,68012.0,0.2744052]
[1771676125781,0.014706,68018.0,68013.0,0.04697624]
[1771676126590,0.014706,68017.0,68013.0,0.04697624]
[1771676126793,0.014705,68021.0,68013.0,0.32364657]
[1771676127102,0.029412,68020.0,68014.0,0.27667033]
[1771676127679,0.014706,68019.0,68014.0,0.27667033]
[1771676128088,0.014704,68028.0,68016.0,0.014706]
[1771676128290,0.014704,68028.0,68014.0,0.26196333]
[1771676128489,0.014706,68020.0,68014.0,0.27667033]
[1771676129383,0.014705,68022.0,68013.0,0.04697624]
[1771676129590,0.014704,68026.0,68013.0,0.04697624]
[1771676129793,0.014706,68017.0,68013.0,0.04697624]
[1771676130993,0.014706,68016.0,68013.0,0.04697624]
[1771676131292,0.014706,68018.0,68013.0,0.04697624]
[1771676131985,0.014706,68018.0,68010.0,0.014708]
[1771676132187,0.014706,68018.0,68010.0,0.06168424]
[1771676134294,0.014706,68019.0,68011.0,0.014707]
[1771676135697,0.029412,68019.0,68011.0,0.014707]
[1771676135898,0.014706,68018.0,68011.0,0.014707]
[1771676136093,0.014706,68019.0,68011.0,0.014707]
[1771676139500,0.014706,68020.0,68012.0,0.014707]
[1771676139899,0.014705,68021.0,68013.0,0.04697624]
[1771676140101,0.08662426,70747.0,68006.0,0.70295841]
[1771676140102,0.014707,68014.0,68006.0,0.014708]
[1771676140304,0.014706,68016.0,68006.0,0.014708]
[1771676140802,0.014707,68014.0,68007.0,0.014708]
[1771676147197,0.014707,68013.0,68007.0,0.014708]
[1771676147405,0.014707,68014.0,68007.0,0.014708]
[1771676150106,0.029414,68014.0,68007.0,0.014708]
[1771676150298,0.014707,68013.0,68006.0,0.014708]
[1771676151310,0.014707,68013.0,68007.0,0.014708]
[1771676161317,0.014707,68013.0,68005.0,0.014709]
[1771676161318,0.014707,68012.0,68005.0,0.014709]
[1771676161820,0.014707,68012.0,68006.0,0.014708]
[1771676163311,0.014707,68013.0,68006.0,0.014708]
[1771676165318,0.014707,68013.0,68006.0,0.029416]
[1771676166420,0.014707,68013.0,68006.0,0.014708]
[1771676169521,0.33528381,68022.0,67999.0,0.44099508]
[1771676169727,0.014708,68007.0,67999.0,0.01471]
[1771676170119,0.014708,68007.0,68000.0,0.01471]
[1771676170319,0.014708,68008.0,68001.0,0.01471]
[1771676171523,0.014709,68006.0,67998.0,0.01471]
[1771676171724,0.014709,68006.0,67998.0,0.02942]
[1771676171926,0.014709,68006.0,67999.0,0.01471]
[1771676172125,0.014708,68008.0,68001.0,0.01471]
[1771676172824,0.014708,68008.0,68000.0,0.01471]
[1771676173123,0.014709,68006.0,67999.0,0.01471]
[1771676173526,0.014708,68007.0,68000.0,0.01471]
[1771676176034,0.014708,68007.0,67999.0,0.01471]
[1771676176732,0.014708,68007.0,68000.0,0.01471]
[1771676176933,0.014708,68008.0,68001.0,0.01471]
[1771676177724,0.014708,68007.0,68000.0,0.01471]
[1771676178137,0.014708,68008.0,68001.0,0.01471]
[1771676180537,0.014708,68009.0,68002.0,0.014709]
[1771676181141,0.014708,68010.0,68003.0,0.014709]
[1771676181636,0.014708,68010.0,68001.0,0.01471]
[1771676181637,0.029416,68010.0,68002.0,0.014709]
[1771676182440,0.014708,68009.0,68002.0,0.014709]
[1771676184036,0.014708,68009.0,68003.0,0.00088]
[1771676184236,0.014708,68009.0,68002.0,0.014709]
[1771676187040,0.014708,68009.0,68003.0,0.00088]
[1771676187237,0.014708,68009.0,68002.0,0.014709]
[1771676189748,0.014708,68009.0,68000.0,0.01471]
[1771676189944,0.014708,68007.0,67999.0,0.2637194]
[1771676190246,0.014709,68006.0,67999.0,0.2637194]
[1771676190641,0.014709,68006.0,67999.0,0.2784294]
[1771676190847,0.014708,68007.0,68000.0,0.01471]
[1771676194243,0.014708,68010.0,68000.0,0.01471]
[1771676194449,0.014708,68008.0,68000.0,0.01471]
[1771676194852,0.014708,68008.0,68001.0,0.01471]
[1771676195450,0.014708,68007.0,67999.0,0.01471]
[1771676195952,0.014708,68007.0,68000.0,0.01471]
[1771676196255,0.014708,68008.0,68000.0,0.01471]
[1771676196948,0.89057448,68036.0,68001.0,0.23309588]
[1771676197144,0.89057448,68036.0,67999.0,0.24592784]
[1771676197145,0.014707,68012.0,68003.0,0.014709]
[1771676197346,0.014708,68010.0,68003.0,0.014709]
[1771676197545,0.014707,68012.0,68004.0,0.014709]
[1771676197745,0.014707,68011.0,68004.0,0.014709]
[1771676200349,0.014707,68011.0,68004.0,0.029418]
[1771676200657,0.014707,68011.0,68004.0,0.014709]
[1771676202056,0.014707,68011.0,68005.0,0.00092]
[1771676202256,0.014707,68011.0,68004.0,0.014709]
[1771676203654,0.014708,68010.0,68003.0,0.014709]
[1771676203955,0.014707,68011.0,68004.0,0.014709]
[1771676205050,0.014707,68011.0,68005.0,0.00092]
[1771676205258,0.014707,68011.0,68004.0,0.014709]
[1771676206156,0.014708,68010.0,68003.0,0.014709]
[1771676206756,0.014707,68011.0,68004.0,0.014709]
[1771676207357,0.014708,68010.0,68003.0,0.014709]
[1771676208459,0.014708,68010.0,68003.0,0.029418]
[1771676208961,0.014707,68011.0,68004.0,0.014709]
[1771676211061,0.014707,68011.0,68005.0,0.00084]
[1771676211266,0.014707,68011.0,68004.0,0.014709]
[1771676213063,0.014708,68010.0,68003.0,0.014709]
[1771676214157,0.014708,68010.0,68002.0,0.014709]
[1771676214363,0.014708,68009.0,68002.0,0.014709]
[1771676215867,0.014708,68009.0,68003.0,0.014709]
[1771676216969,0.014708,68009.0,68002.0,0.014709]
[1771676217471,0.014708,68009.0,68002.0,0.029418]
[1771676217767,0.014708,68009.0,68003.0,0.014709]
[1771676219570,0.014708,68010.0,68003.0,0.014709]
[1771676220066,0.014708,68010.0,68004.0,0.014709]
[1771676222169,0.014708,68009.0,68003.0,0.014709]
[1771676222364,0.014708,68008.0,68003.0,0.014709]
[1771676225269,0.014708,68008.0,68002.0,0.014709]
[1771676227370,0.029416,68008.0,68002.0,0.014709]
[1771676228071,0.014708,68008.0,68002.0,0.014709]
[1771676229070,0.014708,68008.0,68002.0,0.015629]
[1771676229271,0.014708,68008.0,68002.0,0.014709]
[1771676229566,0.014708,68008.0,68000.0,0.74266268]
[1771676229766,0.014708,68008.0,68001.0,0.01471]
[1771676230374,0.014708,68007.0,68001.0,0.01471]
[1771676230770,0.014709,68006.0,68000.0,0.74266268]
[1771676231571,0.014709,68006.0,68000.0,0.72795268]
[1771676231773,0.014709,68006.0,67999.0,0.26063784]
[1771676232073,0.014709,68006.0,68000.0,0.01471]
[1771676233572,0.014708,68008.0,67999.0,0.26063784]
[1771676233573,0.014708,68007.0,67999.0,0.26063784]
[1771676234271,0.014708,68007.0,68000.0,0.01471]
[1771676234977,0.014708,68007.0,68000.0,0.75606779]
[1771676235677,0.014708,68007.0,68000.0,0.77077779]
[1771676235879,0.014708,68007.0,68000.0,0.75606779]
[1771676236376,0.014708,68007.0,68000.0,0.77077779]
[1771676236776,0.014708,68007.0,68000.0,0.75606779]
[1771676237977,0.014708,68007.0,68000.0,0.77077779]
[1771676240178,0.014708,68007.0,68000.0,0.75606779]
[1771676240371,0.014708,68007.0,68001.0,0.01471]
[1771676240676,0.014708,68008.0,68001.0,0.01471]
[1771676241283,0.014708,68007.0,68000.0,0.01471]
[1771676241681,0.014708,68007.0,67999.0,0.24592784]
[1771676241876,0.014709,68006.0,68000.0,0.01471]
[1771676242179,0.014708,68007.0,68000.0,0.01471]
[1771676245678,0.014708,68008.0,68000.0,0.01471]
[1771676245883,0.014708,68009.0,68001.0,0.01471]
[1771676246078,0.014708,68008.0,68001.0,0.01471]
[1771676246277,0.014708,68007.0,68001.0,0.01471]
[1771676246580,0.014708,68007.0,68000.0,0.01471]
[1771676248799,0.014708,68008.0,68001.0,0.01471]
[1771676251488,0.014708,68007.0,68001.0,0.01471]
[1771676252690,0.01471,68002.0,67999.0,0.24565455]
[1771676252882,0.01471,68002.0,67995.0,0.014711]
[1771676253995,0.01471,68001.0,67995.0,0.014711]
[1771676256594,0.014709,68004.0,67997.0,0.01471]
[1771676257692,0.014709,68003.0,67997.0,0.01471]
[1771676257894,0.014708,68008.0,67997.0,0.25197086]
[1771676258095,0.014709,68004.0,67996.0,0.014711]
[1771676258693,0.029418,68004.0,67996.0,0.014711]
[1771676259295,0.014709,68003.0,67996.0,0.014711]
[1771676259699,0.014709,68002.0,67996.0,0.014711]
[1771676261795,0.014707,68012.0,68000.0,0.01471]
[1771676262101,0.014708,68007.0,68001.0,0.014709]
[1771676262297,0.014708,68006.0,68000.0,0.01471]
[1771676262592,0.014708,68007.0,68001.0,0.01471]
[1771676263096,0.014708,68007.0,68000.0,0.01471]
[1771676264198,0.014708,68007.0,67999.0,0.01471]
[1771676264402,0.014709,68006.0,67999.0,0.01471]
[1771676265394,0.014708,68007.0,68000.0,0.01471]
[1771676265799,0.014707,68011.0,68002.0,0.014709]
[1771676266000,0.014708,68010.0,68002.0,0.014709]
[1771676266400,0.014707,68011.0,68003.0,0.014709]
[1771676266601,0.014708,68010.0,68003.0,0.014709]
[1771676267106,0.029416,68010.0,68002.0,0.014709]
[1771676267506,0.014708,68010.0,68002.0,0.014709]
[1771676267700,0.029416,68010.0,68002.0,0.014709]
[1771676267900,0.014708,68010.0,68002.0,0.014709]
[1771676269504,0.014707,68012.0,68003.0,0.014709]
[1771676270090,0.029414,68012.0,68003.0,0.014709]
[1771676270293,0.014707,68011.0,68004.0,0.014709]
[1771676270988,0.014707,68012.0,68005.0,0.014709]
[1771676271193,0.029414,68012.0,68005.0,0.014709]
[1771676271509,0.014707,68012.0,68005.0,0.014709]
[1771676272199,0.014707,68014.0,68005.0,0.014709]
[1771676272708,0.014707,68012.0,68005.0,0.014709]
[1771676272904,0.014707,68012.0,68005.0,0.029418]
[1771676273407,0.014707,68012.0,68005.0,0.014709]
[1771676273708,0.014707,68012.0,68006.0,0.014708]
[1771676273907,0.014707,68013.0,68007.0,0.014708]
[1771676275602,0.014707,68014.0,68007.0,0.014708]
[1771676275802,0.014707,68013.0,68008.0,0.014708]
[1771676276202,0.014707,68013.0,68007.0,0.014708]
[1771676276706,0.014707,68014.0,68007.0,0.014708]
[1771676276910,0.014707,68013.0,67988.0,0.19130606]
[1771676277209,0.014707,68013.0,67973.0,0.014716]
[1771676277210,0.014712,67988.0,67985.0,0.25405076]
[1771676277399,0.014712,67990.0,67986.0,0.01472]
[1771676277906,0.014712,67989.0,67986.0,0.01472]
[1771676278105,0.014712,67989.0,67988.0,0.001]
[1771676278607,0.014712,67989.0,67988.0,0.01572086]
[1771676279401,0.01471,67998.0,67988.0,0.01472086]
[1771676279713,0.014711,67994.0,67989.0,0.01472]
[1771676280011,0.014711,67994.0,67990.0,0.01472]
[1771676280711,0.014712,67992.0,67990.0,0.01472]
[1771676281317,0.014712,67991.0,67990.0,0.01472]
[1771676281512,0.014711,67994.0,67990.0,0.01472]
[1771676281513,0.014711,67996.0,67990.0,0.01472]
[1771676281705,0.014712,67990.0,67982.0,0.014714]
[1771676281911,0.014712,67992.0,67983.0,0.01472086]
[1771676282112,0.014712,67990.0,67982.0,0.014714]
[1771676282411,0.014711,67993.0,67985.0,0.01472086]
[1771676282714,0.014712,67992.0,67982.0,0.014714]
[1771676283014,0.014712,67992.0,67985.0,0.01472086]
[1771676283515,0.014712,67992.0,67982.0,0.014714]
[1771676283906,0.014712,67992.0,67985.0,0.01472086]
[1771676284412,0.014712,67992.0,67986.0,0.01472086]
[1771676284717,0.014712,67992.0,67985.0,0.25424996]
[1771676285016,0.014712,67992.0,67985.0,0.01472086]
[1771676285214,0.014712,67992.0,67983.0,0.014713]
[1771676285416,0.014712,67992.0,67985.0,0.01472086]
[1771676285812,0.014712,67992.0,67986.0,0.01472086]
[1771676286123,0.014711,67993.0,67986.0,0.01472086]
[1771676286417,0.014711,67993.0,67986.0,0.014713]
[1771676286715,0.014712,67992.0,67985.0,0.014713]
[1771676287112,0.014712,67992.0,67987.0,0.01472086]
[1771676287318,0.029422,67994.0,67987.0,0.01472086]
[1771676287612,0.029422,67994.0,67985.0,0.014713]
[1771676287920,0.014711,67994.0,67986.0,0.01472086]
[1771676288216,0.014711,67993.0,67986.0,0.01472086]
[1771676288608,0.014711,67993.0,67987.0,0.01472086]
[1771676289113,0.014711,67993.0,67988.0,0.01472086]
[1771676289419,0.014711,67993.0,67986.0,0.014713]
[1771676289716,0.014711,67993.0,67987.0,0.01472086]
[1771676290217,0.014711,67993.0,67988.0,0.01472086]
[1771676290415,0.014711,67993.0,67987.0,0.014713]
[1771676290608,0.014711,67993.0,67987.0,0.02943386]
[1771676290919,0.014711,67993.0,67987.0,0.014713]
[1771676291218,0.014711,67993.0,67988.0,0.01472086]
[1771676291714,0.014711,67993.0,67989.0,0.01472086]
[1771676291912,0.014711,67993.0,67987.0,0.014713]
[1771676292116,0.014711,67993.0,67988.0,0.01472086]
[1771676292517,0.014711,67993.0,67987.0,0.014713]
[1771676292815,0.014711,67993.0,67989.0,0.01472086]
[1771676293215,0.014711,67993.0,67990.0,0.01472086]
[1771676293415,0.014711,67993.0,67987.0,0.014713]
[1771676293717,0.014711,67993.0,67989.0,0.01472086]
[1771676294012,0.014711,67993.0,67987.0,0.014712]
[1771676294214,0.014711,67993.0,67989.0,0.01472086]
[1771676294418,0.029423,67993.0,67989.0,0.01472086]
[1771676294721,0.014712,67992.0,67990.0,0.01472086]
[1771676294913,0.014712,67992.0,67987.0,0.014712]
[1771676295320,0.029424,67992.0,67990.0,0.01472086]
[1771676295509,0.014712,67992.0,67986.0,0.014713]
[1771676295712,0.014712,67992.0,67990.0,0.01472086]
[1771676296222,0.014712,67992.0,67991.0,0.01472086]
[1771676296520,0.014712,67992.0,67986.0,0.014713]
[1771676296721,0.014712,67992.0,67990.0,0.01472086]
[1771676296917,0.20779351,68019.0,67990.0,0.27266641]
[1771676297215,0.014709,68004.0,67997.0,0.01471]
[1771676297606,0.014708,68009.0,67996.0,0.014711]
[1771676297810,0.014708,68007.0,68000.0,0.01471]
[1771676298220,0.014708,68007.0,67997.0,0.01471]
[1771676298523,0.014708,68010.0,68002.0,0.014709]
[1771676298717,0.014708,68009.0,68002.0,0.014709]
[1771676300221,0.014708,68009.0,68002.0,0.26837412]
[1771676300622,0.014708,68009.0,68002.0,0.25366512]
[1771676300826,0.014708,68009.0,68001.0,0.01471]
[1771676301331,0.014708,68010.0,68003.0,0.014709]
[1771676301526,0.014708,68010.0,68003.0,0.029418]
[1771676301914,0.014708,68010.0,68004.0,0.014709]
[1771676302812,0.014707,68015.0,68008.0,0.014708]
[1771676303121,0.014707,68014.0,68008.0,0.014708]
[1771676303920,0.014707,68013.0,68008.0,0.014708]
[1771676304233,0.014707,68013.0,68007.0,0.014708]
[1771676304529,0.014707,68015.0,68007.0,0.014708]
[1771676304719,0.014707,68014.0,68008.0,0.014708]
[1771676305112,0.014707,68013.0,68008.0,0.014708]
[1771676305319,0.014707,68012.0,68006.0,0.014708]
[1771676306215,0.014707,68014.0,68006.0,0.014708]
[1771676306427,0.014707,68013.0,68007.0,0.014708]
[1771676306628,0.014707,68013.0,68003.0,0.014709]
[1771676306629,0.014708,68008.0,68002.0,0.24768577]
[1771676306826,0.014708,68009.0,68002.0,0.029418]
[1771676307126,0.014708,68009.0,67997.0,0.48559]
[1771676307127,0.014706,68019.0,68001.0,0.014709]
[1771676307327,0.029416,68011.0,68003.0,0.014709]
[1771676307928,0.014708,68010.0,68003.0,0.014709]
[1771676309123,0.014708,68010.0,68002.0,0.014709]
[1771676309826,0.014708,68009.0,68002.0,0.014709]
[1771676313328,0.029416,68011.0,68002.0,0.014709]
[1771676314027,0.014708,68010.0,68002.0,0.014709]
[1771676314229,0.014708,68010.0,68002.0,0.029418]
[1771676314531,0.014708,68010.0,68002.0,0.014709]
[1771676316429,0.014708,68010.0,68002.0,0.029418]
[1771676318320,0.014708,68010.0,68003.0,0.014709]
[1771676323233,0.014708,68010.0,68002.0,0.014709]
[1771676324035,0.014708,68010.0,68003.0,0.014709]
[1771676328040,0.014708,68008.0,68000.0,0.01471]
[1771676328439,0.014708,68007.0,68000.0,0.01471]
[1771676329040,0.014708,68009.0,68001.0,0.01471]
[1771676332544,0.014708,68010.0,68002.0,0.014709]
[1771676333145,0.014707,68012.0,68004.0,0.014709]
[1771676333336,0.014708,68011.0,68003.0,0.014709]
[1771676336147,0.014706,68017.0,68001.0,0.014709]
[1771676336447,0.014708,68007.0,67998.0,0.01471]
[1771676336950,0.014709,68006.0,67998.0,0.01471]
[1771676337146,0.014708,68007.0,67999.0,0.01471]
[1771676338252,0.014709,68006.0,67998.0,0.01471]
[1771676338555,0.014709,68005.0,67997.0,0.48551]
[1771676338752,0.014709,68006.0,67998.0,0.01471]
[1771676339852,0.014708,68007.0,67999.0,0.01471]
[1771676341255,0.014709,68006.0,67998.0,0.01471]
[1771676342953,0.014708,68007.0,67999.0,0.02942]
[1771676343254,0.014708,68008.0,68000.0,0.01471]
[1771676346560,0.014709,68004.0,67994.0,0.014711]
[1771676346760,0.014709,68006.0,67997.0,0.01471]
[1771676347459,0.014709,68005.0,67997.0,0.01471]
[1771676351260,0.014709,68005.0,67998.0,0.01471]
[1771676352063,0.014709,68005.0,67999.0,0.00092]
[1771676352265,0.014709,68005.0,67998.0,0.01471]
[1771676353059,0.014709,68004.0,67996.0,0.014711]
[1771676353265,0.014709,68004.0,67997.0,0.01471]
[1771676353560,0.014709,68005.0,67997.0,0.02942]
[1771676355068,0.014709,68005.0,67998.0,0.01471]
[1771676355670,0.014709,68005.0,67997.0,0.02942]
[1771676355860,0.014709,68006.0,67998.0,0.01471]
[1771676356671,0.014708,68007.0,67998.0,0.01471]
[1771676356672,0.014709,68005.0,67998.0,0.01471]
[1771676357061,0.014709,68006.0,67998.0,0.01471]
[1771676358375,0.014708,68007.0,67999.0,0.01471]
[1771676359571,0.014708,68007.0,67998.0,0.02942]
[1771676359774,0.014709,68006.0,67998.0,0.01471]
[1771676361473,0.014709,68005.0,67998.0,0.01471]
[1771676361775,0.014709,68004.0,67996.0,0.01471]
[1771676364071,0.014709,68004.0,67998.0,0.00088]
[1771676364272,0.014709,68004.0,67994.0,0.014711]
[1771676364875,0.014709,68004.0,67996.0,0.01471]
[1771676365175,0.029418,68004.0,67996.0,0.01471]
[1771676365372,0.014709,68004.0,67996.0,0.01471]
[1771676366176,0.014708,68008.0,67996.0,0.01471]
[1771676366378,0.014709,68004.0,67996.0,0.01471]
[1771676366974,0.014709,68004.0,67996.0,0.029421]
[1771676367970,0.014709,68004.0,67997.0,0.01471]
[1771676369679,0.014709,68004.0,67996.0,0.01471]
[1771676370482,0.014709,68004.0,67997.0,0.01471]
[1771676370880,0.014709,68005.0,67997.0,0.01471]
[1771676371684,0.014709,68006.0,67997.0,0.01471]
[1771676372586,0.014709,68005.0,67997.0,0.01471]
[1771676373283,0.014709,68004.0,67996.0,0.014711]
[1771676373484,0.01471,67999.0,67991.0,0.014712]
[1771676374281,0.01471,67999.0,67992.0,0.014711]
[1771676374990,0.02942,67999.0,67992.0,0.014711]
[1771676375176,0.01471,67999.0,67992.0,0.014711]
[1771676376380,0.01471,67998.0,67990.0,0.029424]
[1771676376582,0.01471,67998.0,67991.0,0.014712]
[1771676376781,0.01471,67999.0,67992.0,0.014711]
[1771676377079,0.01471,67998.0,67992.0,0.014711]
[1771676377286,0.02942,67999.0,67992.0,0.014711]
[1771676377780,0.01471,67998.0,67991.0,0.014712]
[1771676378182,0.01471,67997.0,67991.0,0.014712]
[1771676378381,0.029421,67997.0,67990.0,0.014712]
[1771676378586,0.01471,67997.0,67991.0,0.014712]
[1771676379484,0.014711,67996.0,67990.0,0.014712]
[1771676379986,0.014711,67996.0,67989.0,0.014712]
[1771676380190,0.014711,67995.0,67988.0,0.014712]
[1771676380484,0.014711,67994.0,67986.0,0.485513]
[1771676380689,0.014711,67994.0,67987.0,0.014712]
[1771676381386,0.014711,67994.0,67987.0,0.014713]
[1771676382587,0.014711,67996.0,67987.0,0.014713]
[1771676382782,0.014711,67994.0,67987.0,0.014713]
[1771676383387,0.014711,67996.0,67987.0,0.014713]
[1771676383388,0.014711,67995.0,67987.0,0.014713]
[1771676384388,0.014711,67994.0,67987.0,0.014713]
[1771676385087,0.014711,67995.0,67987.0,0.014713]
[1771676385289,0.014711,67995.0,67987.0,0.029425]
[1771676385780,0.01471,67997.0,67988.0,0.014712]
[1771676386289,0.01471,67997.0,67989.0,0.014712]
[1771676386690,0.01471,67997.0,67990.0,0.014712]
[1771676389186,0.01471,67997.0,67990.0,0.029424]
[1771676389385,0.014711,67996.0,67990.0,0.014712]
[1771676389786,0.01471,67997.0,67990.0,0.014712]
[1771676390586,0.014708,68011.0,67991.0,0.2520773]
[1771676390785,0.014709,68006.0,68000.0,0.19479989]
[1771676390986,0.014709,68006.0,68000.0,0.01471]
[1771676391993,0.014708,68007.0,68001.0,0.01471]
[1771676392288,0.18361002,68025.0,68002.0,0.014709]
[1771676392482,0.014706,68017.0,68002.0,0.014709]
[1771676392681,0.014708,68008.0,68002.0,0.014709]
[1771676393194,0.014707,68013.0,68005.0,0.014709]
[1771676393886,0.014707,68012.0,68006.0,0.014708]
[1771676395284,0.014706,68019.0,68004.0,0.014709]
[1771676395488,0.014706,68018.0,68002.0,0.014709]
[1771676395689,0.014707,68013.0,68003.0,0.014709]
[1771676395890,0.014708,68010.0,68003.0,0.014709]
[1771676396395,0.029416,68010.0,68003.0,0.014709]
[1771676396693,0.029416,68010.0,68002.0,0.014709]
[1771676397199,0.014708,68009.0,68002.0,0.014709]
[1771676397398,0.014708,68009.0,68001.0,0.01471]
[1771676397794,0.014708,68008.0,68000.0,0.01471]
[1771676398099,0.014708,68007.0,68000.0,0.01471]
[1771676400893,0.014709,68005.0,67998.0,0.01471]
[1771676401300,0.014709,68006.0,67999.0,0.01471]
[1771676402405,0.014708,68008.0,68001.0,0.014709]
[1771676403301,0.014708,68010.0,68002.0,0.014709]
[1771676404102,0.014708,68010.0,68003.0,0.014709]
[1771676405708,0.014707,68014.0,68006.0,0.014708]
[1771676405910,0.014707,68013.0,68006.0,0.014708]
[1771676407002,0.014707,68014.0,68006.0,0.014708]
[1771676407195,0.014707,68013.0,68006.0,0.014708]
[1771676410308,0.014707,68012.0,68006.0,0.014708]
[1771676412810,0.014707,68012.0,68003.0,0.014709]
[1771676412811,0.014707,68011.0,68003.0,0.014709]
[1771676413203,0.014707,68011.0,68005.0,0.014709]
[1771676413514,0.014707,68011.0,68004.0,0.014709]
[1771676415416,0.014707,68012.0,68005.0,0.014709]
[1771676415916,0.029414,68012.0,68005.0,0.014709]
[1771676416417,0.014707,68013.0,68006.0,0.014708]
[1771676416710,0.014707,68013.0,68005.0,0.014709]
[1771676416711,0.014707,68012.0,68005.0,0.014709]
[1771676419119,0.029414,68012.0,68005.0,0.014709]
[1771676420321,0.014707,68012.0,68005.0,0.014709]
[1771676421024,0.014708,68010.0,68004.0,0.014709]
[1771676421224,0.014708,68009.0,68003.0,0.014709]
[1771676421523,0.014708,68010.0,68003.0,0.014709]
[1771676425429,0.014708,68010.0,68004.0,0.014709]
[1771676427027,0.014707,68011.0,68004.0,0.014709]
[1771676427227,0.014707,68013.0,68005.0,0.014709]
[1771676427632,0.014707,68013.0,68005.0,0.029418]
[1771676427829,0.014707,68013.0,68005.0,0.014709]
[1771676428032,0.014707,68013.0,68006.0,0.014708]
[1771676428229,0.014707,68012.0,68005.0,0.014709]
[1771676428731,0.014707,68012.0,68005.0,0.029418]
[1771676429032,0.014707,68014.0,68007.0,0.014708]
[1771676429333,0.014707,68013.0,68006.0,0.014708]
[1771676429923,0.014703,68030.0,68004.0,0.014709]
[1771676430140,0.014702,68036.0,68011.0,0.014707]
[1771676430141,0.014706,68019.0,68011.0,0.014707]
[1771676430424,0.014706,68020.0,68013.0,0.014707]
[1771676430620,0.014705,68021.0,68014.0,0.014707]
[1771676430825,0.014706,68020.0,68013.0,0.014707]
[1771676431325,0.014706,68019.0,68013.0,0.014707]
[1771676431725,0.014706,68020.0,68014.0,0.014707]
[1771676432536,0.014706,68019.0,68014.0,0.014707]
[1771676433027,0.014706,68020.0,68015.0,0.014707]
[1771676433229,0.014706,68020.0,68013.0,0.014707]
[1771676434435,0.014706,68018.0,68012.0,0.014707]
[1771676434633,0.014706,68017.0,68012.0,0.014707]
[1771676434935,0.014706,68019.0,68012.0,0.014707]
[1771676434936,0.014706,68018.0,68012.0,0.014707]
[1771676435236,0.014706,68017.0,68012.0,0.014707]
[1771676435831,0.014704,68029.0,68014.0,0.014707]
[1771676436027,0.014704,68028.0,68013.0,0.014707]
[1771676436227,0.014706,68020.0,68013.0,0.014707]
[1771676436533,0.029412,68020.0,68013.0,0.014707]
[1771676436724,0.014706,68019.0,68012.0,0.014707]
[1771676438435,0.014706,68020.0,68010.0,0.014707]
[1771676438735,0.014706,68019.0,68011.0,0.014707]
[1771676438929,0.014706,68019.0,68010.0,0.19479689]
[1771676439133,0.014706,68019.0,68012.0,0.014707]
[1771676439333,0.014704,68029.0,68020.0,0.014705]
[1771676439524,0.014704,68026.0,68017.0,0.014706]
[1771676439730,0.014705,68025.0,68017.0,0.014706]
[1771676439923,0.014704,68027.0,68017.0,0.014706]
[1771676440127,0.014704,68026.0,68019.0,0.014706]
[1771676440327,0.014704,68026.0,68018.0,0.014706]
[1771676441037,0.014704,68029.0,68019.0,0.014706]
[1771676441237,0.01543796,68031.0,68014.0,0.23623945]
[1771676441437,0.014703,68030.0,68022.0,0.014705]
[1771676441734,0.00073496,68031.0,68024.0,0.014705]
[1771676442239,0.03014096,68031.0,68022.0,0.014705]
[1771676442438,0.00073496,68031.0,68020.0,0.18008989]
[1771676442642,0.014704,68029.0,68021.0,0.014705]
[1771676443025,0.014704,68027.0,68019.0,0.014706]
[1771676443347,0.014704,68029.0,68021.0,0.014705]
[1771676444230,0.014704,68029.0,68021.0,0.02941]
[1771676444436,0.014704,68029.0,68021.0,0.014705]
[1771676444637,0.014704,68028.0,68020.0,0.014705]
[1771676445039,0.014704,68028.0,68021.0,0.014705]
[1771676445230,0.014704,68029.0,68021.0,0.014705]
[1771676446533,0.014704,68028.0,68021.0,0.014705]
[1771676446738,0.014704,68028.0,68019.0,0.014706]
[1771676446739,0.014704,68028.0,68020.0,0.014705]
[1771676448533,0.014704,68028.0,68021.0,0.014705]
[1771676449039,0.014704,68029.0,68021.0,0.014705]
[1771676450238,0.014704,68029.0,68022.0,0.014705]
[1771676450438,0.014703,68030.0,68022.0,0.014705]
[1771676450835,0.029406,68030.0,68022.0,0.014705]
[1771676451030,0.014704,68027.0,68020.0,0.014705]
[1771676451239,0.014706,68019.0,68008.0,0.1550831]
[1771676451540,0.014705,68022.0,68013.0,0.014707]
[1771676451740,0.02941,68024.0,68014.0,0.014707]
[1771676451940,0.014705,68024.0,68014.0,0.014707]
[1771676453045,0.014705,68024.0,68015.0,0.014706]
[1771676453938,0.014704,68027.0,68016.0,0.014706]
[1771676454245,0.014705,68025.0,68016.0,0.014706]
[1771676454544,0.014705,68025.0,68015.0,0.014706]
[1771676455343,0.014705,68024.0,68015.0,0.014706]
[1771676457042,0.014705,68024.0,68018.0,0.00088]
[1771676457237,0.014704,68025.0,68016.0,0.014706]
[1771676461448,0.014705,68024.0,68015.0,0.014707]
[1771676463942,0.014704,68027.0,68015.0,0.014707]
[1771676464142,0.014704,68028.0,68018.0,0.014706]
[1771676465145,0.029408,68028.0,68018.0,0.014706]
[1771676465343,0.014704,68027.0,68017.0,0.014706]
[1771676467947,0.014704,68027.0,68018.0,0.014706]
[1771676473555,0.014704,68027.0,68018.0,0.029412]
[1771676473756,0.014704,68027.0,68018.0,0.014706]
[1771676474457,0.014704,68027.0,68018.0,0.029412]
[1771676474662,0.014702,68035.0,68022.0,0.014705]
[1771676474953,0.014703,68033.0,68024.0,0.014704]
[1771676475346,0.014703,68033.0,68023.0,0.014705]